[Event "Elite Hotels Open 2024"]
[Site "Elite Stadshotellet, Kungsgatan 6, Vaxjo, Sweden"]
[Date "2024.02.10"]
[Round "6.10"]
[White "Eklund, Joel"]
[Black "Fransson, Patrick"]
[Result "1-0"]
[TimeControl "15 minutes + 5 seconds per move from move one (Round 1 - 4) / 90 minutes + 30 seconds per move from move one (Round 5 - 8)"]
[WhiteFideId "1705288"]
[BlackFideId "1709305"]
[WhiteElo "2258"]
[BlackElo "2086"]

1. d4 {[%clk 01:30:44]} {[%emt 00:00:15]} d5 {[%clk 01:30:51]} {[%emt
00:00:09]} 2. Bg5 {[%clk 01:31:01]} {[%emt 00:00:13]} f6 {[%clk 01:31:05]}
{[%emt 00:00:17]} 3. Bh4 {[%clk 01:31:15]} {[%emt 00:00:16]} c5 {[%clk
01:31:01]} {[%emt 00:00:34]} 4. dxc5 {[%clk 01:31:36]} {[%emt 00:00:10]} e5
{[%clk 01:27:01]} {[%emt 00:04:30]} 5. e4 {[%clk 01:31:55]} {[%emt 00:00:11]}
d4 {[%clk 01:23:13]} {[%emt 00:04:17]} 6. Bc4 {[%clk 01:31:31]} {[%emt
00:00:54]} Ne7 {[%clk 01:18:39]} {[%emt 00:05:05]} 7. c3 {[%clk 01:31:43]}
{[%emt 00:00:18]} Ng6 {[%clk 01:17:55]} {[%emt 00:01:12]} 8. Bg3 {[%clk
01:30:39]} {[%emt 00:01:37]} Bxc5 {[%clk 01:16:08]} {[%emt 00:02:17]} 9. Ne2
{[%clk 01:26:35]} {[%emt 00:04:33]} Nc6 {[%clk 01:14:39]} {[%emt 00:01:59]} 10.
Qb3 {[%clk 01:23:44]} {[%emt 00:03:22]} Qb6 {[%clk 01:12:03]} {[%emt 00:03:06]}
11. cxd4 {[%clk 01:09:05]} {[%emt 00:15:09]} Qxb3 {[%clk 01:11:18]} {[%emt
00:01:14]} 12. axb3 {[%clk 01:06:57]} {[%emt 00:02:38]} Nxd4 {[%clk 01:11:03]}
{[%emt 00:00:45]} 13. Nxd4 {[%clk 01:07:00]} {[%emt 00:00:28]} Bxd4 {[%clk
01:10:21]} {[%emt 00:01:11]} 14. Nc3 {[%clk 01:03:53]} {[%emt 00:03:37]} Bxc3+
{[%clk 01:07:12]} {[%emt 00:03:39]} 15. bxc3 {[%clk 01:04:17]} {[%emt
00:00:06]} Bd7 {[%clk 01:03:14]} {[%emt 00:04:27]} 16. Bd5 {[%clk 00:59:31]}
{[%emt 00:05:17]} Bc6 {[%clk 01:02:56]} {[%emt 00:00:47]} 17. Bxc6+ {[%clk
00:59:57]} {[%emt 00:00:05]} bxc6 {[%clk 01:03:22]} {[%emt 00:00:05]} 18. Ra6
{[%clk 01:00:23]} {[%emt 00:00:04]} Kd7 {[%clk 01:03:31]} {[%emt 00:00:21]} 19.
Kd2 {[%clk 01:00:45]} {[%emt 00:00:07]} Kc7 {[%clk 01:03:13]} {[%emt 00:00:49]}
20. f3 {[%clk 00:58:23]} {[%emt 00:02:52]} Nf4 {[%clk 01:01:01]} {[%emt
00:02:41]} 21. Bxf4 {[%clk 00:58:00]} {[%emt 00:00:54]} exf4 {[%clk 01:01:30]}
{[%emt 00:00:01]} 22. h4 {[%clk 00:55:20]} {[%emt 00:03:10]} Rhd8+ {[%clk
01:00:33]} {[%emt 00:01:26]} 23. Kc2 {[%clk 00:54:15]} {[%emt 00:01:35]} Rd6
{[%clk 00:59:07]} {[%emt 00:01:56]} 24. Rd1 {[%clk 00:54:33]} {[%emt 00:00:12]}
Rxd1 {[%clk 00:57:10]} {[%emt 00:02:27]} 25. Kxd1 {[%clk 00:54:58]} {[%emt
00:00:05]} Kb7 {[%clk 00:55:14]} {[%emt 00:02:26]} 26. Ra5 {[%clk 00:55:20]}
{[%emt 00:00:08]} g6 {[%clk 00:55:28]} {[%emt 00:00:15]} 27. e5 {[%clk
00:50:15]} {[%emt 00:05:36]} Rd8+ {[%clk 00:53:18]} {[%emt 00:02:40]} 28. Kc2
{[%clk 00:50:36]} {[%emt 00:00:09]} f5 {[%clk 00:49:29]} {[%emt 00:04:18]} 29.
Ra1 {[%clk 00:47:52]} {[%emt 00:03:14]} Re8 {[%clk 00:48:36]} {[%emt 00:01:23]}
30. Re1 {[%clk 00:48:14]} {[%emt 00:00:08]} Rd8 {[%clk 00:43:22]} {[%emt
00:05:44]} 31. e6 {[%clk 00:40:48]} {[%emt 00:07:56]} Kc7 {[%clk 00:41:47]}
{[%emt 00:02:05]} 32. e7 {[%clk 00:41:12]} {[%emt 00:00:06]} Re8 {[%clk
00:42:11]} {[%emt 00:00:05]} 33. Kd3 {[%clk 00:41:40]} {[%emt 00:00:03]} Kd6
{[%clk 00:41:24]} {[%emt 00:01:17]} 34. Kc4 {[%clk 00:41:58]} {[%emt 00:00:12]}
Rxe7 {[%clk 00:40:55]} {[%emt 00:00:59]} 35. Rxe7 {[%clk 00:42:23]} {[%emt
00:00:04]} Kxe7 {[%clk 00:41:18]} {[%emt 00:00:07]} 36. Kb4 {[%clk 00:42:52]}
{[%emt 00:00:02]} Kd7 {[%clk 00:41:14]} {[%emt 00:00:33]} 37. Ka5 {[%clk
00:43:17]} {[%emt 00:00:05]} Kc7 {[%clk 00:41:40]} {[%emt 00:00:04]} 38. Ka6
{[%clk 00:43:43]} {[%emt 00:00:04]} Kb8 {[%clk 00:41:45]} {[%emt 00:00:24]} 39.
b4 {[%clk 00:41:49]} {[%emt 00:02:24]} h6 {[%clk 00:33:48]} {[%emt 00:08:27]}
40. c4 {[%clk 00:41:12]} {[%emt 00:01:07]} g5 {[%clk 00:33:45]} {[%emt
00:00:33]} 41. b5 {[%clk 00:27:18]} {[%emt 00:14:25]} cxb5 {[%clk 00:33:14]}
{[%emt 00:01:01]} 42. cxb5 {[%clk 00:27:43]} {[%emt 00:00:05]} g4 {[%clk
00:29:41]} {[%emt 00:04:02]} 43. b6 {[%clk 00:25:28]} {[%emt 00:02:46]} axb6
{[%clk 00:28:07]} {[%emt 00:02:03]} 44. Kxb6 {[%clk 00:24:44]} {[%emt
00:01:15]} gxf3 {[%clk 00:24:54]} {[%emt 00:03:43]} 45. gxf3 {[%clk 00:25:05]}
{[%emt 00:00:08]} Kc8 {[%clk 00:25:00]} {[%emt 00:00:24]} 46. Kc6 {[%clk
00:25:30]} {[%emt 00:00:05]} Kd8 {[%clk 00:25:00]} {[%emt 00:00:30]} 47. Kd6
{[%clk 00:25:56]} {[%emt 00:00:05]} Kc8 {[%clk 00:24:55]} {[%emt 00:00:35]} 48.
Ke6 {[%clk 00:25:14]} {[%emt 00:01:11]} Kc7 {[%clk 00:22:38]} {[%emt 00:02:47]}
49. Kxf5 {[%clk 00:25:25]} {[%emt 00:00:19]} Kd6 {[%clk 00:23:04]} {[%emt
00:00:04]} 50. Kg6 {[%clk 00:25:21]} {[%emt 00:00:34]} Ke6 {[%clk 00:23:22]}
{[%emt 00:00:13]} 51. Kxh6 {[%clk 00:25:41]} {[%emt 00:00:09]} Kf6 {[%clk
00:23:25]} {[%emt 00:00:27]} 52. h5 {[%clk 00:26:03]} {[%emt 00:00:08]} 1-0

[Event "Elite Hotels Open 2024"]
[Site "Elite Stadshotellet, Kungsgatan 6, Vaxjo, Sweden"]
[Date "2024.02.10"]
[Round "6.11"]
[White "Jakenberg, Jussi"]
[Black "Akesson, Ralf"]
[Result "0-1"]
[TimeControl "15 minutes + 5 seconds per move from move one (Round 1 - 4) / 90 minutes + 30 seconds per move from move one (Round 5 - 8)"]
[BlackTitle "GM"]
[WhiteFideId "1710931"]
[BlackFideId "1700120"]
[WhiteElo "2039"]
[BlackElo "2378"]

1. e4 {[%clk 01:30:56]} {[%emt 00:00:02]} c6 {[%clk 01:30:01]} {[%emt
00:01:00]} 2. d4 {[%clk 01:31:02]} {[%emt 00:00:24]} d5 {[%clk 01:30:26]}
{[%emt 00:00:05]} 3. exd5 {[%clk 01:31:09]} {[%emt 00:00:23]} cxd5 {[%clk
01:30:47]} {[%emt 00:00:09]} 4. Nf3 {[%clk 01:31:27]} {[%emt 00:00:13]} Nf6
{[%clk 01:30:53]} {[%emt 00:00:23]} 5. Ne5 {[%clk 01:30:33]} {[%emt 00:01:24]}
Nc6 {[%clk 01:30:59]} {[%emt 00:00:25]} 6. Bb5 {[%clk 01:30:22]} {[%emt
00:00:41]} Qa5+ {[%clk 01:29:07]} {[%emt 00:02:21]} 7. Nc3 {[%clk 01:30:40]}
{[%emt 00:00:12]} Qb6 {[%clk 01:26:30]} {[%emt 00:03:07]} 8. O-O {[%clk
01:28:37]} {[%emt 00:02:33]} e6 {[%clk 01:26:26]} {[%emt 00:00:34]} 9. Bf4
{[%clk 01:26:45]} {[%emt 00:02:22]} Be7 {[%clk 01:26:29]} {[%emt 00:00:26]} 10.
Re1 {[%clk 01:25:44]} {[%emt 00:01:31]} O-O {[%clk 01:26:39]} {[%emt 00:00:21]}
11. Bxc6 {[%clk 01:25:37]} {[%emt 00:00:38]} bxc6 {[%clk 01:27:01]} {[%emt
00:00:07]} 12. Na4 {[%clk 01:25:33]} {[%emt 00:00:35]} Qb7 {[%clk 01:18:00]}
{[%emt 00:09:32]} 13. Re3 {[%clk 01:15:09]} {[%emt 00:10:54]} Re8 {[%clk
01:10:30]} {[%emt 00:07:59]} 14. Nd3 {[%clk 00:58:45]} {[%emt 00:16:54]} Ne4
{[%clk 01:05:23]} {[%emt 00:05:38]} 15. f3 {[%clk 00:54:20]} {[%emt 00:04:55]}
Nd6 {[%clk 01:05:38]} {[%emt 00:00:14]} 16. Nac5 {[%clk 00:53:10]} {[%emt
00:01:40]} Qb6 {[%clk 01:04:36]} {[%emt 00:01:31]} 17. Bxd6 {[%clk 00:47:01]}
{[%emt 00:06:39]} Bxd6 {[%clk 01:04:57]} {[%emt 00:00:09]} 18. f4 {[%clk
00:42:52]} {[%emt 00:04:39]} Qd8 {[%clk 01:02:29]} {[%emt 00:02:57]} 19. c3
{[%clk 00:39:00]} {[%emt 00:04:23]} a5 {[%clk 01:01:58]} {[%emt 00:01:00]} 20.
Qa4 {[%clk 00:35:35]} {[%emt 00:03:55]} Qc7 {[%clk 00:56:51]} {[%emt 00:05:37]}
21. g3 {[%clk 00:35:32]} {[%emt 00:00:34]} Ba6 {[%clk 00:56:01]} {[%emt
00:01:19]} 22. Nxa6 {[%clk 00:35:11]} {[%emt 00:00:50]} Rxa6 {[%clk 00:56:25]}
{[%emt 00:00:06]} 23. f5 {[%clk 00:24:57]} {[%emt 00:10:45]} Rf8 {[%clk
00:41:04]} {[%emt 00:15:50]} 24. fxe6 {[%clk 00:23:44]} {[%emt 00:01:43]} fxe6
{[%clk 00:41:27]} {[%emt 00:00:07]} 25. Kg2 {[%clk 00:22:47]} {[%emt 00:01:27]}
Rf6 {[%clk 00:41:00]} {[%emt 00:00:56]} 26. Rae1 {[%clk 00:22:11]} {[%emt
00:01:06]} Qf7 {[%clk 00:38:41]} {[%emt 00:02:49]} 27. Qc2 {[%clk 00:21:36]}
{[%emt 00:01:06]} Ra8 {[%clk 00:36:39]} {[%emt 00:02:31]} 28. Qe2 {[%clk
00:21:46]} {[%emt 00:00:21]} Re8 {[%clk 00:36:40]} {[%emt 00:00:29]} 29. Rf1
{[%clk 00:13:57]} {[%emt 00:08:18]} Rxf1 {[%clk 00:30:13]} {[%emt 00:06:57]} 30.
Qxf1 {[%clk 00:14:26]} {[%emt 00:00:01]} a4 {[%clk 00:29:33]} {[%emt 00:01:11]}
31. Qxf7+ {[%clk 00:09:17]} {[%emt 00:05:39]} Kxf7 {[%clk 00:29:59]} {[%emt
00:00:03]} 32. a3 {[%clk 00:07:45]} {[%emt 00:02:03]} Rc8 {[%clk 00:29:28]}
{[%emt 00:01:01]} 33. Kf3 {[%clk 00:07:41]} {[%emt 00:00:35]} c5 {[%clk
00:29:09]} {[%emt 00:00:48]} 34. Nxc5 {[%clk 00:07:02]} {[%emt 00:01:09]} Bxc5
{[%clk 00:29:32]} {[%emt 00:00:07]} 35. dxc5 {[%clk 00:07:31]} {[%emt
00:00:01]} Rxc5 {[%clk 00:29:56]} {[%emt 00:00:05]} 36. Re2 {[%clk 00:05:32]}
{[%emt 00:02:29]} Kf6 {[%clk 00:29:54]} {[%emt 00:00:32]} 37. Ke3 {[%clk
00:05:39]} {[%emt 00:00:22]} e5 {[%clk 00:29:49]} {[%emt 00:00:35]} 38. Kd3
{[%clk 00:04:53]} {[%emt 00:01:16]} Ke6 {[%clk 00:29:06]} {[%emt 00:01:13]} 39.
Rf2 {[%clk 00:04:15]} {[%emt 00:01:08]} Rb5 {[%clk 00:27:10]} {[%emt 00:02:25]}
40. Kc2 {[%clk 00:04:00]} {[%emt 00:00:45]} Rb8 {[%clk 00:26:59]} {[%emt
00:00:41]} 41. g4 {[%clk 00:02:30]} {[%emt 00:02:01]} e4 {[%clk 00:25:26]}
{[%emt 00:02:02]} 42. Rf5 {[%clk 00:02:10]} {[%emt 00:00:51]} g6 {[%clk
00:25:20]} {[%emt 00:00:36]} 43. Rf2 {[%clk 00:02:36]} {[%emt 00:00:04]} Rc8
{[%clk 00:24:06]} {[%emt 00:01:43]} 44. Kd2 {[%clk 00:02:38]} {[%emt 00:00:27]}
Rc7 {[%clk 00:23:10]} {[%emt 00:01:26]} 45. Ke3 {[%clk 00:02:32]} {[%emt
00:00:37]} Ke5 {[%clk 00:22:23]} {[%emt 00:01:17]} 46. Rf8 {[%clk 00:01:27]}
{[%emt 00:01:35]} Rb7 {[%clk 00:22:19]} {[%emt 00:00:35]} 47. Rf2 {[%clk
00:01:23]} {[%emt 00:00:33]} Rb3 {[%clk 00:21:52]} {[%emt 00:00:56]} 48. Rd2
{[%clk 00:01:50]} {[%emt 00:00:04]} g5 {[%clk 00:21:01]} {[%emt 00:01:21]} 49.
h3 {[%clk 00:01:59]} {[%emt 00:00:21]} h6 {[%clk 00:21:16]} {[%emt 00:00:14]}
50. Kf2 {[%clk 00:01:14]} {[%emt 00:01:15]} Kf4 {[%clk 00:21:07]} {[%emt
00:00:40]} 51. Rxd5 {[%clk 00:01:19]} {[%emt 00:00:25]} Rxb2+ {[%clk 00:21:29]}
{[%emt 00:00:07]} 52. Ke1 {[%clk 00:01:40]} {[%emt 00:00:08]} Ra2 {[%clk
00:20:39]} {[%emt 00:01:21]} 53. Rd6 {[%clk 00:00:58]} {[%emt 00:01:13]} Rxa3
{[%clk 00:20:32]} {[%emt 00:00:37]} 54. Rxh6 {[%clk 00:00:46]} {[%emt
00:00:42]} Ke3 {[%clk 00:19:39]} 0-1

[Event "Elite Hotels Open 2024"]
[Site "Elite Stadshotellet, Kungsgatan 6, Vaxjo, Sweden"]
[Date "2024.02.10"]
[Round "6.12"]
[White "Lyngsjo, Hakan"]
[Black "Olsson, William"]
[Result "0-1"]
[TimeControl "15 minutes + 5 seconds per move from move one (Round 1 - 4) / 90 minutes + 30 seconds per move from move one (Round 5 - 8)"]
[BlackTitle "FM"]
[WhiteFideId "1701649"]
[BlackFideId "1741721"]
[WhiteElo "1980"]
[BlackElo "2373"]

1. e4 {[%clk 01:30:56]} {[%emt 00:00:03]} e5 {[%clk 01:30:50]} {[%emt
00:00:11]} 2. Bc4 {[%clk 01:31:15]} {[%emt 00:00:10]} Nf6 {[%clk 01:31:15]}
{[%emt 00:00:05]} 3. d3 {[%clk 01:31:41]} {[%emt 00:00:04]} c6 {[%clk
01:31:35]} {[%emt 00:00:11]} 4. Nf3 {[%clk 01:29:30]} {[%emt 00:02:40]} d5
{[%clk 01:31:51]} {[%emt 00:00:14]} 5. Bb3 {[%clk 01:29:22]} {[%emt 00:00:37]}
Bd6 {[%clk 01:25:17]} {[%emt 00:07:05]} 6. Bg5 {[%clk 01:28:25]} {[%emt
00:01:27]} dxe4 {[%clk 01:19:49]} {[%emt 00:05:57]} 7. dxe4 {[%clk 01:27:52]}
{[%emt 00:01:04]} h6 {[%clk 01:20:14]} {[%emt 00:00:06]} 8. Bh4 {[%clk
01:20:12]} {[%emt 00:08:10]} Qe7 {[%clk 01:12:51]} {[%emt 00:07:53]} 9. Nbd2
{[%clk 01:17:34]} {[%emt 00:03:08]} Bg4 {[%clk 01:10:47]} {[%emt 00:02:30]} 10.
h3 {[%clk 01:15:22]} {[%emt 00:02:45]} Bh5 {[%clk 01:09:50]} {[%emt 00:01:29]}
11. Qe2 {[%clk 01:12:49]} {[%emt 00:03:02]} Nbd7 {[%clk 01:08:15]} {[%emt
00:02:05]} 12. Nc4 {[%clk 00:55:37]} {[%emt 00:17:41]} Bc7 {[%clk 01:08:28]}
{[%emt 00:00:17]} 13. O-O-O {[%clk 00:55:09]} {[%emt 00:00:59]} g5 {[%clk
01:04:41]} {[%emt 00:04:17]} 14. Bg3 {[%clk 00:53:49]} {[%emt 00:01:50]} Bg6
{[%clk 01:03:30]} {[%emt 00:01:40]} 15. Nfd2 {[%clk 00:47:49]} {[%emt
00:06:31]} Nh5 {[%clk 00:55:12]} {[%emt 00:08:48]} 16. Ne3 {[%clk 00:42:15]}
{[%emt 00:06:03]} Nf4 {[%clk 00:52:55]} {[%emt 00:02:47]} 17. Qf1 {[%clk
00:38:18]} {[%emt 00:04:27]} O-O-O {[%clk 00:52:09]} {[%emt 00:01:15]} 18. Nf5
{[%clk 00:38:07]} {[%emt 00:00:43]} Qf6 {[%clk 00:51:19]} {[%emt 00:01:20]} 19.
Bxf4 {[%clk 00:36:28]} {[%emt 00:02:09]} exf4 {[%clk 00:51:32]} {[%emt
00:00:17]} 20. g4 {[%clk 00:35:14]} {[%emt 00:01:44]} fxg3 {[%clk 00:51:18]}
{[%emt 00:00:45]} 21. fxg3 {[%clk 00:33:53]} {[%emt 00:01:51]} Nc5 {[%clk
00:51:37]} {[%emt 00:00:11]} 22. Qg2 {[%clk 00:27:32]} {[%emt 00:06:50]} Nxe4
{[%clk 00:47:36]} {[%emt 00:04:31]} 23. Qxe4 {[%clk 00:19:24]} {[%emt
00:08:38]} Qxf5 {[%clk 00:47:54]} {[%emt 00:00:12]} 24. Qxf5+ {[%clk 00:19:15]}
{[%emt 00:00:39]} Bxf5 {[%clk 00:48:20]} {[%emt 00:00:04]} 25. Bxf7 {[%clk
00:19:31]} {[%emt 00:00:14]} Bxg3 {[%clk 00:48:42]} {[%emt 00:00:08]} 26. Nc4
{[%clk 00:18:44]} {[%emt 00:01:17]} Bf4+ {[%clk 00:48:19]} {[%emt 00:00:54]} 27.
Kb1 {[%clk 00:18:59]} {[%emt 00:00:14]} Rxd1+ {[%clk 00:47:48]} {[%emt
00:01:01]} 28. Rxd1 {[%clk 00:19:25]} {[%emt 00:00:04]} Rd8 {[%clk 00:48:11]}
{[%emt 00:00:07]} 0-1

[Event "Elite Hotels Open 2024"]
[Site "Elite Stadshotellet, Kungsgatan 6, Vaxjo, Sweden"]
[Date "2024.02.10"]
[Round "6.13"]
[White "Eriksson, Wilmer"]
[Black "Falkevall, Axel"]
[Result "1-0"]
[TimeControl "15 minutes + 5 seconds per move from move one (Round 1 - 4) / 90 minutes + 30 seconds per move from move one (Round 5 - 8)"]
[BlackTitle "FM"]
[WhiteFideId "1768298"]
[BlackFideId "1735560"]
[WhiteElo "1976"]
[BlackElo "2290"]

1. e4 {[%clk 01:30:57]} {[%emt 00:00:02]} e5 {[%clk 01:30:55]} {[%emt
00:00:06]} 2. Nc3 {[%clk 01:30:57]} {[%emt 00:00:29]} Nf6 {[%clk 01:30:20]}
{[%emt 00:01:05]} 3. g3 {[%clk 01:31:19]} {[%emt 00:00:09]} Bc5 {[%clk
01:28:46]} {[%emt 00:02:04]} 4. Bg2 {[%clk 01:31:43]} {[%emt 00:00:06]} c6
{[%clk 01:28:59]} {[%emt 00:00:17]} 5. Nge2 {[%clk 01:30:57]} {[%emt 00:01:16]}
O-O {[%clk 01:28:27]} {[%emt 00:01:02]} 6. O-O {[%clk 01:31:14]} {[%emt
00:00:13]} Re8 {[%clk 01:21:43]} {[%emt 00:07:13]} 7. d4 {[%clk 01:30:10]}
{[%emt 00:01:35]} exd4 {[%clk 01:21:40]} {[%emt 00:00:33]} 8. Nxd4 {[%clk
01:30:31]} {[%emt 00:00:09]} d6 {[%clk 01:14:17]} {[%emt 00:07:52]} 9. h3
{[%clk 01:21:55]} {[%emt 00:09:06]} Bb6 {[%clk 01:07:43]} {[%emt 00:07:05]} 10.
Kh2 {[%clk 01:10:34]} {[%emt 00:11:51]} Na6 {[%clk 01:04:33]} {[%emt 00:03:40]}
11. f4 {[%clk 01:00:45]} {[%emt 00:10:19]} Nc5 {[%clk 01:03:31]} {[%emt
00:01:32]} 12. Re1 {[%clk 01:00:32]} {[%emt 00:00:43]} Ba5 {[%clk 01:00:10]}
{[%emt 00:03:50]} 13. e5 {[%clk 00:55:18]} {[%emt 00:05:44]} dxe5 {[%clk
00:57:17]} {[%emt 00:03:24]} 14. fxe5 {[%clk 00:54:01]} {[%emt 00:01:47]} Nd5
{[%clk 00:53:35]} {[%emt 00:04:11]} 15. Bd2 {[%clk 00:49:53]} {[%emt 00:04:38]}
Nxc3 {[%clk 00:52:02]} {[%emt 00:02:03]} 16. bxc3 {[%clk 00:49:39]} {[%emt
00:00:44]} Bc7 {[%clk 00:45:19]} {[%emt 00:07:14]} 17. Bf4 {[%clk 00:47:28]}
{[%emt 00:02:40]} Ne6 {[%clk 00:44:13]} {[%emt 00:01:36]} 18. Qd3 {[%clk
00:29:37]} {[%emt 00:18:22]} Bd7 {[%clk 00:36:00]} {[%emt 00:08:43]} 19. Rad1
{[%clk 00:27:08]} {[%emt 00:02:59]} Nxf4 {[%clk 00:35:04]} {[%emt 00:01:26]} 20.
gxf4 {[%clk 00:27:14]} {[%emt 00:00:24]} Qh4 {[%clk 00:33:56]} {[%emt
00:01:37]} 21. Re4 {[%clk 00:19:31]} {[%emt 00:08:14]} Qh5 {[%clk 00:28:09]}
{[%emt 00:06:17]} 22. Rg1 {[%clk 00:11:14]} {[%emt 00:08:47]} Rad8 {[%clk
00:22:00]} {[%emt 00:06:38]} 23. Qg3 {[%clk 00:06:01]} {[%emt 00:05:44]} c5
{[%clk 00:20:26]} {[%emt 00:02:04]} 24. Ne2 {[%clk 00:05:51]} {[%emt 00:00:39]}
Bf5 {[%clk 00:17:38]} {[%emt 00:03:19]} 25. Re3 {[%clk 00:06:10]} {[%emt
00:00:11]} Rd2 {[%clk 00:15:52]} {[%emt 00:02:15]} 26. Bf3 {[%clk 00:04:10]}
{[%emt 00:02:30]} Qh6 {[%clk 00:16:10]} {[%emt 00:00:12]} 27. Bg4 {[%clk
00:00:56]} {[%emt 00:03:43]} Bxc2 {[%clk 00:12:53]} {[%emt 00:03:48]} 28. Kh1
{[%clk 00:00:36]} {[%emt 00:00:50]} Ba4 {[%clk 00:11:14]} {[%emt 00:02:09]} 29.
Bf3 {[%clk 00:00:36]} {[%emt 00:00:31]} b6 {[%clk 00:09:13]} {[%emt 00:02:30]}
30. Be4 {[%clk 00:00:34]} {[%emt 00:00:31]} Bd7 {[%clk 00:08:30]} {[%emt
00:01:13]} 31. c4 {[%clk 00:00:35]} {[%emt 00:00:30]} f6 {[%clk 00:05:06]}
{[%emt 00:03:53]} 32. Bd5+ {[%clk 00:00:39]} {[%emt 00:00:27]} Kh8 {[%clk
00:03:06]} {[%emt 00:02:30]} 33. e6 {[%clk 00:00:35]} {[%emt 00:00:34]} Bc8
{[%clk 00:03:26]} {[%emt 00:00:10]} 34. Qf3 {[%clk 00:00:33]} {[%emt 00:00:32]}
f5 {[%clk 00:02:59]} {[%emt 00:00:57]} 35. Qg3 {[%clk 00:00:35]} {[%emt
00:00:28]} Qf6 {[%clk 00:02:46]} {[%emt 00:00:42]} 36. Nc3 {[%clk 00:00:45]}
{[%emt 00:00:21]} g6 {[%clk 00:02:43]} {[%emt 00:00:33]} 37. Nb5 {[%clk
00:00:57]} {[%emt 00:00:18]} Bb8 {[%clk 00:02:55]} {[%emt 00:00:17]} 38. Rge1
{[%clk 00:01:26]} Re7 {[%clk 00:02:45]} {[%emt 00:00:40]} 39. h4 {[%clk
00:00:53]} {[%emt 00:01:03]} h6 {[%clk 00:02:03]} {[%emt 00:01:12]} 40. a4
{[%clk 00:00:51]} {[%emt 00:00:32]} g5 {[%clk 00:02:09]} {[%emt 00:00:23]} 41.
fxg5 {[%clk 00:00:41]} {[%emt 00:00:41]} Qb2 {[%clk 00:01:30]} {[%emt
00:01:10]} 42. Qxb8 {[%clk 00:00:56]} {[%emt 00:00:15]} f4 {[%clk 00:01:51]}
{[%emt 00:00:09]} 43. Qxf4 {[%clk 00:01:05]} {[%emt 00:00:21]} 1-0